Workbook

Sheet DashBoard
G13: Financial Dashboard

Sheet Data Entry
B2: Period Starting: | C2: 2000-01-01 | D2: =C2+31 -> 2000-02-01 | E2: =D2+31 -> 2000-03-03 | F2: 2000-04-03 | G2: 2000-05-04 | H2: 2000-06-04 | I2: 2000-07-05 | J2: 2000-08-05 | K2: =J2+31 -> 2000-09-05 | L2: 2000-10-06 | M2: 2000-11-06 | N2: 2000-12-07 | O2: Totals
B4: Sales
B5: Sales by Product Line 1 | C5: 1600 | D5: 3350 | E5: 5100 | F5: 6850 | G5: 8600 | H5: 10350 | I5: 12100 | J5: 13850 | K5: 15600 | L5: 17350 | M5: 19100 | N5: 20850 | O5: =SUM(C5:N5) -> 134700
B6: Budget | C6: 595 | D6: 1678 | E6: 4754 | F6: 6501 | G6: 7744 | H6: 9845 | I6: 10976 | J6: 11232 | K6: 14323 | L6: 15434 | M6: 16543 | N6: 17896 | O6: =SUM(C6:N6) -> 117521
B7: Over / (Under Budget) | C7: =C5-C6 -> 1005 | D7: =D5-D6 -> 1672 | E7: 346 | F7: 349 | G7: 856 | H7: 505 | I7: 1124 | J7: 2618 | K7: =K5-K6 -> 1277 | L7: =L5-L6 -> 1916 | M7: =M5-M6 -> 2557 | N7: =N5-N6 -> 2954 | O7: =O6-O5 -> -17179
B9: Sales by Product Line 2 | C9: 2600 | D9: 3350 | E9: 4100 | F9: 4850 | G9: 5600 | H9: 6350 | I9: 7100 | J9: 7850 | K9: 8600 | L9: 9350 | M9: 10100 | N9: 10850 | O9: =SUM(C9:N9) -> 80700
B10: Budget | C10: 1595 | D10: 1678 | E10: 2754 | F10: 3168 | G10: 3747.5 | H10: 4327 | I10: 4906.5 | J10: 5486 | K10: 6065.5 | L10: 6645 | M10: 7224.5 | N10: 7804 | O10: =SUM(C10:N10) -> 55401
B11: Over / (Under Budget) | C11: =C9-C10 -> 1005 | D11: 1672 | E11: 1346 | F11: 1682 | G11: 1852.5 | H11: 2023 | I11: 2193.5 | J11: 2364 | K11: 2534.5 | L11: 2705 | M11: 2875.5 | N11: 3046 | O11: =SUM(C11:N11) -> 25299
B13: Sales by Product Line 3 | C13: 1600 | D13: 3350 | E13: 5100 | F13: 6850 | G13: 8600 | H13: 10350 | I13: 12100 | J13: 13850 | K13: 15600 | L13: 17350 | M13: 19100 | N13: 20850 | O13: =SUM(C13:N13) -> 134700
B14: Budget | C14: 1895 | D14: 3678 | E14: 5754 | F14: 7501 | G14: 9430.5 | H14: 11319.9 | I14: 13209.3 | J14: 15098.7 | K14: 16988.1 | L14: 18877.5 | M14: 20766.9 | N14: 22656.3 | O14: =SUM(C14:N14) -> 147175.2
B15: Over / (Under Budget) | C15: =C13-C14 -> -295 | D15: -328 | E15: -654 | F15: -651 | G15: -830.5 | H15: -969.9 | I15: -1109.3 | J15: -1248.7 | K15: -1388.1 | L15: -1527.5 | M15: -1666.9 | N15: -1806.3 | O15: =SUM(C15:N15) -> -12475.2
B17: Sales by Product Line 4 | C17: 1600 | D17: 3350 | E17: 5100 | F17: 6850 | G17: 12600 | H17: 10350 | I17: 15100 | J17: 15183.33333 | K17: 16433.33333 | L17: 17683.33333 | M17: 18933.33333 | N17: 20183.33333 | O17: =SUM(C17:N17) -> 143366.6667
B18: Budget | C18: 2895 | D18: 4678 | E18: 7754 | F18: 6501 | G18: 9430.5 | H18: 11319.9 | I18: 13209.3 | J18: 15098.7 | K18: 16988.1 | L18: 18877.5 | M18: 20766.9 | N18: 22656.3 | O18: =SUM(C18:N18) -> 150175.2
B19: Over / (Under Budget) | C19: =C17-C18 -> -1295 | D19: -1328 | E19: -2654 | F19: 349 | G19: 3169.5 | H19: -969.9 | I19: 1890.7 | J19: 84.63333333 | K19: -554.7666667 | L19: -1194.166667 | M19: -1833.566667 | N19: -2472.966667 | O19: =SUM(C19:N19) -> -6808.533333
B21: Sales by Product Line 5 | C21: 1600 | D21: 3350 | E21: 5100 | F21: 6850 | G21: 8600 | H21: 10350 | I21: 12100 | J21: 13850 | K21: 15600 | L21: 17350 | M21: 19100 | N21: 20850 | O21: =SUM(C21:N21) -> 134700
B22: Budget | C22: 595 | D22: 1678 | E22: 4754 | F22: 6501 | G22: 7744 | H22: 9845 | I22: 10976 | J22: 11232 | K22: 14323 | L22: 15434 | M22: 16543 | N22: 17896 | O22: =SUM(C22:N22) -> 117521
B23: Over / (Under Budget) | C23: =C21-C22 -> 1005 | D23: 1672 | E23: 346 | F23: 349 | G23: 856 | H23: 505 | I23: 1124 | J23: 2618 | K23: 1277 | L23: 1916 | M23: 2557 | N23: 2954 | O23: =SUM(C23:N23) -> 17179
B25: Sales by Product Line 6 | C25: 16000 | D25: 13350 | E25: 15100 | F25: 16850 | G25: 16400 | H25: 16830 | I25: 17260 | J25: 17690 | K25: 15600 | L25: 17350 | M25: 19100 | N25: 20850 | O25: =SUM(C25:N25) -> 202380
B26: Budget | C26: 1595 | D26: 1678 | E26: 4754 | F26: 6501 | G26: 8080.5 | H26: 9859.9 | I26: 11639.3 | J26: 13418.7 | K26: 14323 | L26: 15434 | M26: 16543 | N26: 17896 | O26: =SUM(C26:N26) -> 121722.4
B27: Over / (Under Budget) | C27: =C25-C26 -> 14405 | D27: 11672 | E27: 10346 | F27: 10349 | G27: 8319.5 | H27: 6970.1 | I27: 5620.7 | J27: 4271.3 | K27: 1277 | L27: 1916 | M27: 2557 | N27: 2954 | O27: =SUM(C27:N27) -> 80657.6
B29: Total Sales | C29: =C5+C9+C13+C17+C21+C25 -> 25000 | D29: =D5+D9+D13+D17+D21+D25 -> 30100 | E29: 39600 | F29: 49100 | G29: 60400 | H29: 64580 | I29: 75760 | J29: 82273.33333 | K29: 87433.33333 | L29: =L5+L9+L13+L17+L21+L25 -> 96433.33333 | M29: 105433.3333 | N29: 114433.3333 | O29: =SUM(C29:N29) -> 830546.6667
B30: Total Sales Budget | C30: =C6+C10+C14+C18+C22+C26 -> 9170 | D30: =D6+D10+D14+D18+D22+D26 -> 15068 | E30: 30524 | F30: 36673 | G30: 46177 | H30: 56516.7 | I30: 64916.4 | J30: 71566.1 | K30: 83010.7 | L30: =L6+L10+L14+L18+L22+L26 -> 90702 | M30: 98387.3 | N30: 106804.6 | O30: =SUM(C30:N30) -> 709515.8
B31: Total Over / (Under Budget) | C31: =C29-C30 -> 15830 | D31: =D29-D30 -> 15032 | E31: 9076 | F31: 12427 | G31: 14223 | H31: 8063.3 | I31: 10843.6 | J31: 10707.23333 | K31: 4422.633333 | L31: =L29-L30 -> 5731.333333 | M31: =M29-M30 -> 7046.033333 | N31: =N29-N30 -> 7628.733333 | O31: =SUM(C31:N31) -> 121030.8667
B33: Less Cost of Goods Sold
B34: Materials | C34: 1600 | D34: 3350 | E34: 5100 | F34: 6850 | G34: 8600 | H34: 10350 | I34: 12100 | J34: 13850 | K34: 15600 | L34: 17350 | M34: 19100 | N34: 20850 | O34: =SUM(C34:N34) -> 134700
B35: Budget | C35: 595 | D35: 1678 | E35: 4754 | F35: 6501 | G35: 7744 | H35: 9845 | I35: 10976 | J35: 11232 | K35: 14323 | L35: 15434 | M35: 16543 | N35: 17896 | O35: =SUM(C35:N35) -> 117521
B36: Over / (Under Budget) | C36: =C34-C35 -> 1005 | D36: 1672 | E36: 346 | F36: 349 | G36: 856 | H36: 505 | I36: 1124 | J36: 2618 | K36: 1277 | L36: 1916 | M36: 2557 | N36: 2954 | O36: =SUM(C36:N36) -> 17179
B38: Labor | C38: 1600 | D38: 3350 | E38: 5100 | F38: 6850 | G38: 8600 | H38: 10350 | I38: 12100 | J38: 13850 | K38: 15600 | L38: 17350 | M38: 19100 | N38: 20850 | O38: =SUM(C38:N38) -> 134700
B39: Budget | C39: 595 | D39: 1678 | E39: 4754 | F39: 6501 | G39: 7744 | H39: 9845 | I39: 10976 | J39: 11232 | K39: 14323 | L39: 15434 | M39: 16543 | N39: 17896 | O39: =SUM(C39:N39) -> 117521
B40: Over / (Under Budget) | C40: =C38-C39 -> 1005 | D40: 1672 | E40: 346 | F40: 349 | G40: 856 | H40: 505 | I40: 1124 | J40: 2618 | K40: 1277 | L40: 1916 | M40: 2557 | N40: 2954 | O40: =SUM(C40:N40) -> 17179
B42: Overhead | C42: 1600 | D42: 3350 | E42: 5100 | F42: 6850 | G42: 8600 | H42: 10350 | I42: 12100 | J42: 13850 | K42: 15600 | L42: 17350 | M42: 19100 | N42: 20850 | O42: =SUM(C42:N42) -> 134700
B43: Budget | C43: 595 | D43: 1678 | E43: 4754 | F43: 6501 | G43: 7744 | H43: 9845 | I43: 10976 | J43: 11232 | K43: 14323 | L43: 15434 | M43: 16543 | N43: 17896 | O43: =SUM(C43:N43) -> 117521
B44: Over / (Under Budget) | C44: =C42-C43 -> 1005 | D44: 1672 | E44: 346 | F44: 349 | G44: 856 | H44: 505 | I44: 1124 | J44: 2618 | K44: 1277 | L44: 1916 | M44: 2557 | N44: 2954 | O44: =SUM(C44:N44) -> 17179
B46: Other | C46: 1600 | D46: 3350 | E46: 5100 | F46: 6850 | G46: 8600 | H46: 10350 | I46: 12100 | J46: 13850 | K46: 15600 | L46: 17350 | M46: 19100 | N46: 20850 | O46: =SUM(C46:N46) -> 134700
B47: Budget | C47: 595 | D47: 1678 | E47: 4754 | F47: 6501 | G47: 7744 | H47: 9845 | I47: 10976 | J47: 11232 | K47: 14323 | L47: 15434 | M47: 16543 | N47: 17896 | O47: =SUM(C47:N47) -> 117521
B48: Over / (Under Budget) | C48: =C46-C47 -> 1005 | D48: 1672 | E48: 346 | F48: 349 | G48: 856 | H48: 505 | I48: 1124 | J48: 2618 | K48: 1277 | L48: 1916 | M48: 2557 | N48: 2954 | O48: =SUM(C48:N48) -> 17179
B50: Total Cost of Goods Sold | C50: =C34+C38+C42+C46 -> 6400 | D50: =D34+D38+D42+D46 -> 13400 | E50: 20400 | F50: 27400 | G50: 34400 | H50: 41400 | I50: 48400 | J50: 55400 | K50: 62400 | L50: 69400 | M50: 76400 | N50: 83400 | O50: =SUM(C50:N50) -> 538800
B51: Total COG Budget | C51: =C35+C39+C43+C47 -> 2380 | D51: =D35+D39+D43+D47 -> 6712 | E51: 19016 | F51: 26004 | G51: 30976 | H51: 39380 | I51: 43904 | J51: 44928 | K51: 57292 | L51: 61736 | M51: 66172 | N51: 71584 | O51: =SUM(C51:N51) -> 470084
B52: Total Over / (Under Budget) | C52: =C50-C51 -> 4020 | D52: =D50-D51 -> 6688 | E52: 1384 | F52: 1396 | G52: 3424 | H52: 2020 | I52: 4496 | J52: 10472 | K52: 5108 | L52: 7664 | M52: 10228 | N52: 11816 | O52: =SUM(C52:N52) -> 68716
B55: Operating Expenses
B56: G&A Expenses
B57: Operating Expenses | C57: 1600 | D57: 3350 | E57: 5100 | F57: 6850 | G57: 8600 | H57: 10350 | I57: 12100 | J57: 13850 | K57: 15600 | L57: 17350 | M57: 19100 | N57: 20850 | O57: =SUM(C57:N57) -> 134700
B58: Budget | C58: 595 | D58: 1678 | E58: 4754 | F58: 6501 | G58: 7744 | H58: 9845 | I58: 10976 | J58: 11232 | K58: 14323 | L58: 15434 | M58: 16543 | N58: 17896 | O58: =SUM(C58:N58) -> 117521
B59: Over / (Under Budget) | C59: =C57-C58 -> 1005 | D59: 1672 | E59: 346 | F59: 349 | G59: 856 | H59: 505 | I59: 1124 | J59: 2618 | K59: 1277 | L59: 1916 | M59: 2557 | N59: 2954 | O59: =SUM(O57:O58) -> 252221
B61: Payroll Salaries | C61: 1600 | D61: 3350 | E61: 5100 | F61: 6850 | G61: 8600 | H61: 10350 | I61: 12100 | J61: 13850 | K61: 15600 | L61: 17350 | M61: 19100 | N61: 20850 | O61: =SUM(C61:N61) -> 134700
B62: Budget | C62: 595 | D62: 1678 | E62: 4754 | F62: 6501 | G62: 7744 | H62: 9845 | I62: 10976 | J62: 11232 | K62: 14323 | L62: 15434 | M62: 16543 | N62: 17896 | O62: =SUM(C62:N62) -> 117521
B63: Over / (Under Budget) | C63: =C61-C62 -> 1005 | D63: 1672 | E63: 346 | F63: 349 | G63: 856 | H63: 505 | I63: 1124 | J63: 2618 | K63: 1277 | L63: 1916 | M63: 2557 | N63: 2954 | O63: =SUM(O61:O62) -> 252221
B65: Total G&A Expenses | C65: =C57+C61 -> 3200 | D65: =D57+D61 -> 6700 | E65: 10200 | F65: 13700 | G65: 17200 | H65: 20700 | I65: 24200 | J65: 27700 | K65: 31200 | L65: 34700 | M65: 38200 | N65: 41700 | O65: =SUM(C65:N65) -> 269400
B66: Total G&A Budget | C66: =C58+C62 -> 1190 | D66: =D58+D62 -> 3356 | E66: 9508 | F66: 13002 | G66: 15488 | H66: 19690 | I66: 21952 | J66: 22464 | K66: 28646 | L66: 30868 | M66: 33086 | N66: 35792 | O66: =SUM(C66:N66) -> 235042
B67: Total Over / (Under Budget) | C67: =C65-C66 -> 2010 | D67: =D65-D66 -> 3344 | E67: 692 | F67: 698 | G67: 1712 | H67: 1010 | I67: 2248 | J67: 5236 | K67: =K65-K66 -> 2554 | L67: =L65-L66 -> 3832 | M67: =M65-M66 -> 5114 | N67: =N65-N66 -> 5908 | O67: =SUM(C67:N67) -> 34358
B70: Sales Expenses
B71: Operating Expenses | C71: 1600 | D71: 3350 | E71: 5100 | F71: 6850 | G71: 8600 | H71: 10350 | I71: 12100 | J71: 13850 | K71: 15600 | L71: 17350 | M71: 19100 | N71: 20850 | O71: =SUM(C71:N71) -> 134700
B72: Budget | C72: 595 | D72: 1678 | E72: 4754 | F72: 6501 | G72: 7744 | H72: 9845 | I72: 10976 | J72: 11232 | K72: 14323 | L72: 15434 | M72: 16543 | N72: 17896 | O72: =SUM(C72:N72) -> 117521
B73: Over / (Under Budget) | C73: =C71-C72 -> 1005 | D73: 1672 | E73: 346 | F73: 349 | G73: 856 | H73: 505 | I73: 1124 | J73: 2618 | K73: 1277 | L73: 1916 | M73: 2557 | N73: 2954 | O73: =SUM(O71:O72) -> 252221
B75: Payroll Salaries | C75: 1600 | D75: 3350 | E75: 5100 | F75: 6850 | G75: 8600 | H75: 10350 | I75: 12100 | J75: 13850 | K75: 15600 | L75: 17350 | M75: 19100 | N75: 20850 | O75: =SUM(C75:N75) -> 134700
B76: Budget | C76: 595 | D76: 1678 | E76: 4754 | F76: 6501 | G76: 7744 | H76: 9845 | I76: 10976 | J76: 11232 | K76: 14323 | L76: 15434 | M76: 16543 | N76: 17896 | O76: =SUM(C76:N76) -> 117521
B77: Over / (Under Budget) | C77: =C75-C76 -> 1005 | D77: 1672 | E77: 346 | F77: 349 | G77: 856 | H77: 505 | I77: 1124 | J77: 2618 | K77: 1277 | L77: 1916 | M77: 2557 | N77: 2954 | O77: =SUM(O75:O76) -> 252221
B79: Total Sales Expenses | C79: =C71+C75 -> 3200 | D79: =D71+D75 -> 6700 | E79: 10200 | F79: 13700 | G79: 17200 | H79: 20700 | I79: 24200 | J79: 27700 | K79: 31200 | L79: =L71+L75 -> 34700 | M79: 38200 | N79: 41700 | O79: =SUM(C79:N79) -> 269400
B80: Total Sales Expense Budget | C80: =C72+C76 -> 1190 | D80: =D72+D76 -> 3356 | E80: 9508 | F80: 13002 | G80: 15488 | H80: 19690 | I80: 21952 | J80: 22464 | K80: 28646 | L80: 30868 | M80: 33086 | N80: 35792 | O80: =SUM(C80:N80) -> 235042
B81: Total Over / (Under Budget) | C81: =C79-C80 -> 2010 | D81: =D79-D80 -> 3344 | E81: 692 | F81: 698 | G81: 1712 | H81: 1010 | I81: 2248 | J81: 5236 | K81: 2554 | L81: =L79-L80 -> 3832 | M81: =M79-M80 -> 5114 | N81: =N79-N80 -> 5908 | O81: =SUM(C81:N81) -> 34358
B84: Marketing Expenses
B85: Operating Expenses | C85: 1600 | D85: 3350 | E85: 5100 | F85: 6850 | G85: 8600 | H85: 10350 | I85: 12100 | J85: 13850 | K85: 15600 | L85: 17350 | M85: 19100 | N85: 20850 | O85: =SUM(C85:N85) -> 134700
B86: Budget | C86: 595 | D86: 1678 | E86: 4754 | F86: 6501 | G86: 7744 | H86: 9845 | I86: 10976 | J86: 11232 | K86: 14323 | L86: 15434 | M86: 16543 | N86: 17896 | O86: =SUM(C86:N86) -> 117521
B87: Over / (Under Budget) | C87: =C85-C86 -> 1005 | D87: 1672 | E87: 346 | F87: 349 | G87: 856 | H87: 505 | I87: 1124 | J87: 2618 | K87: 1277 | L87: 1916 | M87: 2557 | N87: 2954 | O87: =SUM(O85:O86) -> 252221
B89: Payroll Salaries | C89: 1600 | D89: 3350 | E89: 5100 | F89: 6850 | G89: 8600 | H89: 10350 | I89: 12100 | J89: 13850 | K89: 15600 | L89: 17350 | M89: 19100 | N89: 20850 | O89: =SUM(C89:N89) -> 134700
B90: Budget | C90: 595 | D90: 1678 | E90: 4754 | F90: 6501 | G90: 7744 | H90: 9845 | I90: 10976 | J90: 11232 | K90: 14323 | L90: 15434 | M90: 16543 | N90: 17896 | O90: =SUM(C90:N90) -> 117521
B91: Over / (Under Budget) | C91: =C89-C90 -> 1005 | D91: 1672 | E91: 346 | F91: 349 | G91: 856 | H91: 505 | I91: 1124 | J91: 2618 | K91: 1277 | L91: 1916 | M91: 2557 | N91: 2954 | O91: =SUM(O89:O90) -> 252221
B93: Total Marketing Expenses | C93: =C85+C89 -> 3200 | D93: =D85+D89 -> 6700 | E93: 10200 | F93: 13700 | G93: 17200 | H93: 20700 | I93: 24200 | J93: 27700 | K93: 31200 | L93: =L85+L89 -> 34700 | M93: 38200 | N93: 41700 | O93: =SUM(C93:N93) -> 269400
B94: Total Marketing Expense Budget | C94: =C86+C90 -> 1190 | D94: =D86+D90 -> 3356 | E94: 9508 | F94: 13002 | G94: 15488 | H94: 19690 | I94: 21952 | J94: 22464 | K94: 28646 | L94: 30868 | M94: 33086 | N94: 35792 | O94: =SUM(C94:N94) -> 235042
B95: Total Over / (Under Budget) | C95: =C93-C94 -> 2010 | D95: 3344 | E95: 692 | F95: 698 | G95: 1712 | H95: 1010 | I95: 2248 | J95: 5236 | K95: 2554 | L95: 3832 | M95: 5114 | N95: 5908 | O95: =SUM(C95:N95) -> 34358
B98: Research & Development Expenses
B99: Operating Expenses | C99: 1600 | D99: 3350 | E99: 5100 | F99: 6850 | G99: 8600 | H99: 10350 | I99: 12100 | J99: 13850 | K99: 15600 | L99: 17350 | M99: 19100 | N99: 20850 | O99: =SUM(C99:N99) -> 134700
B100: Budget | C100: 595 | D100: 1678 | E100: 4754 | F100: 6501 | G100: 7744 | H100: 9845 | I100: 10976 | J100: 11232 | K100: 14323 | L100: 15434 | M100: 16543 | N100: 17896 | O100: =SUM(C100:N100) -> 117521
B101: Over / (Under Budget) | C101: =C99-C100 -> 1005 | D101: 1672 | E101: 346 | F101: 349 | G101: 856 | H101: 505 | I101: 1124 | J101: 2618 | K101: 1277 | L101: 1916 | M101: 2557 | N101: 2954 | O101: =SUM(O99:O100) -> 252221
B103: Payroll Salaries | C103: 1600 | D103: 3350 | E103: 5100 | F103: 6850 | G103: 8600 | H103: 10350 | I103: 12100 | J103: 13850 | K103: 15600 | L103: 17350 | M103: 19100 | N103: 20850 | O103: =SUM(C103:N103) -> 134700
B104: Budget | C104: 595 | D104: 1678 | E104: 4754 | F104: 6501 | G104: 7744 | H104: 9845 | I104: 10976 | J104: 11232 | K104: 14323 | L104: 15434 | M104: 16543 | N104: 17896 | O104: =SUM(C104:N104) -> 117521
B105: Over / (Under Budget) | C105: =C103-C104 -> 1005 | D105: 1672 | E105: 346 | F105: 349 | G105: 856 | H105: 505 | I105: 1124 | J105: 2618 | K105: 1277 | L105: 1916 | M105: 2557 | N105: 2954 | O105: =SUM(O103:O104) -> 252221
B107: Total Research & Development Expenses | C107: =C99+C103 -> 3200 | D107: =D99+D103 -> 6700 | E107: 10200 | F107: 13700 | G107: 17200 | H107: 20700 | I107: 24200 | J107: 27700 | K107: 31200 | L107: =L99+L103 -> 34700 | M107: 38200 | N107: 41700 | O107: =SUM(C107:N107) -> 269400
B108: Total R&D Expenses Budget | C108: =C100+C104 -> 1190 | D108: =D100+D104 -> 3356 | E108: 9508 | F108: 13002 | G108: 15488 | H108: 19690 | I108: 21952 | J108: 22464 | K108: 28646 | L108: 30868 | M108: 33086 | N108: 35792 | O108: =SUM(C108:N108) -> 235042
B109: Total Over / (Under Budget) | C109: =C107-C108 -> 2010 | D109: 3344 | E109: 692 | F109: 698 | G109: 1712 | H109: 1010 | I109: 2248 | J109: 5236 | K109: 2554 | L109: 3832 | M109: 5114 | N109: 5908 | O109: =SUM(C109:N109) -> 34358
B112: Total Operating Expenses | C112: =C65+C79+C93+C107 -> 12800 | D112: =D65+D79+D93+D107 -> 26800 | E112: 40800 | F112: 54800 | G112: 68800 | H112: 82800 | I112: 96800 | J112: 110800 | K112: 124800 | L112: 138800 | M112: 152800 | N112: 166800 | O112: =SUM(C112:N112) -> 1077600
B113: Total Payroll Salaries | C113: =C61+C75+C89+C103 -> 6400 | D113: =D61+D75+D89+D103 -> 13400 | E113: 20400 | F113: 27400 | G113: 34400 | H113: 41400 | I113: 48400 | J113: 55400 | K113: 62400 | L113: 69400 | M113: 76400 | N113: 83400 | O113: =SUM(C113:N113) -> 538800
B114: Total All Operating Expenses | C114: =SUM(C112:C113) -> 19200 | D114: =SUM(D112:D113) -> 40200 | E114: 61200 | F114: 82200 | G114: 103200 | H114: 124200 | I114: 145200 | J114: 166200 | K114: 187200 | L114: 208200 | M114: 229200 | N114: 250200 | O114: =SUM(C114:N114) -> 1616400
B116: EBIT | C116: =C29-C114 -> 5800 | D116: =D29-D114 -> -10100 | E116: =E29-E114 -> -21600 | F116: =F29-F114 -> -33100 | G116: -42800 | H116: -59620 | I116: -69440 | J116: -83926.66667 | K116: -99766.66667 | L116: -111766.6667 | M116: -123766.6667 | N116: -135766.6667 | O116: =SUM(C116:N116) -> -785853.3333
B118: Interest income (expense) | C118: 10000 | D118: 10300 | E118: 10609 | F118: 10912 | G118: 11216.5 | H118: 11521 | I118: 11825.5 | J118: 12130 | K118: 12434.5 | L118: 12739 | M118: 13043.5 | N118: 13348 | O118: =SUM(C118:N118) -> 140079
B119: Other income (expense) | C119: 20000 | D119: 20600 | E119: 21218 | F119: 21824 | G119: 22433 | H119: 23042 | I119: 23651 | J119: 24260 | K119: 24869 | L119: 25478 | M119: 26087 | N119: 26696 | O119: =SUM(C119:N119) -> 280158
B120: Total Nonoperating Income (expense) | C120: =SUM(C118:C119) -> 30000 | D120: =SUM(D118:D119) -> 30900 | E120: 31827 | F120: 32736 | G120: 33649.5 | H120: 34563 | I120: 35476.5 | J120: 36390 | K120: 37303.5 | L120: 38217 | M120: 39130.5 | N120: 40044 | O120: =SUM(C120:N120) -> 420237
B122: Income (Loss) Before Taxes | C122: =SUM(C116:C120) -> 65800 | D122: =SUM(D116:D120) -> 51700 | E122: 42054 | F122: 32372 | G122: 24499 | H122: 9506 | I122: 1513 | J122: -11146.66667 | K122: -25159.66667 | L122: -35332.66667 | M122: -45505.66667 | N122: -55678.66667 | O122: =SUM(C122:N122) -> 54620.66667
B124: Income Taxes | C124: 8563 | D124: 7563 | E124: 6563 | F124: 5563 | G124: 7563 | H124: 5963 | I124: 5563 | J124: 5163 | K124: 4763 | L124: 4363 | M124: 3963 | N124: 3563 | O124: =SUM(C124:N124) -> 69156
B126: Net Income (Loss) | C126: =C122-C124 -> 57237 | D126: =D122-D124 -> 44137 | E126: 35491 | F126: 26809 | G126: 16936 | H126: 3543 | I126: -4050 | J126: -16309.66667 | K126: -29922.66667 | L126: -39695.66667 | M126: -49468.66667 | N126: -59241.66667 | O126: -14535.33333
B128: Cumulative Net Income (Loss) | C128: =C126 -> 57237 | D128: =+C128+D126 -> 101374 | E128: =+D128+E126 -> 136865 | F128: =+E128+F126 -> 163674 | G128: 180610 | H128: 184153 | I128: 180103 | J128: 163793.3333 | K128: 133870.6667 | L128: 94175 | M128: 44706.33333 | N128: -14535.33333 | O128: -29070.66667

Sheet Chart 1

Sheet Chart 2

Sheet Chart 3

Sheet Chart 4

Sheet Chart 5

Sheet Chart 6

Sheet Chart 7

Sheet Chart 8

Sheet Chart 9

Sheet Chart 10

Sheet Chart 11

Sheet Chart 12

Sheet Chart 13

Sheet Chart 14

Sheet Chart 15

Sheet Chart 16

Sheet Chart 17

Sheet Chart 18

Sheet Chart 19

Sheet Chart 20

Sheet Chart 21

Sheet Chart 22

Sheet Chart 23

Sheet Chart 24
